fUSD/lending_fUSD_20240103
["ID","MTS","AMOUNT","RATE_DAILY","PERIOD"]
[309974513,1704250184478,-507.36652116,0.00032876,2]
[309974514,1704250184502,-506.05031829,0.00032876,2]
[309974515,1704250184525,-510.19705122,0.00032876,2]
[309974516,1704250184549,-525.74270703,0.00032876,2]
[309974517,1704250184572,-508.64980095,0.00032876,2]
[309974518,1704250184595,-500.0,0.00032876,2]
[309974519,1704250184618,-158.91017773,0.00032876,2]
[309974520,1704250184642,-572.05822635,0.00032876,2]
[309974521,1704250184668,-505.20938459,0.00032876,2]
[309974522,1704250184691,-500.0,0.00032876,2]
[309974523,1704250184715,-518.21686726,0.00032876,2]
[309974524,1704250184737,-528.01150575,0.00032876,2]
[309974525,1704250184760,-632.51688242,0.00032876,2]
[309974526,1704250184783,-366.17394494,0.00032876,2]
[309974527,1704250184806,-504.4352558,0.00032876,2]
[309974528,1704250184830,-510.42631985,0.00032876,2]
[309974529,1704250184854,-500.0,0.00032876,2]
[309974530,1704250184876,-500.0,0.00032876,2]
[309974531,1704250184901,-500.0,0.00032876,2]
[309974532,1704250184925,-415.49757744,0.00032876,2]
[309974533,1704250184947,-500.0,0.00032876,2]
[309974534,1704250184970,-500.0,0.00032876,2]
[309974535,1704250184994,-500.0,0.00032876,2]
[309974536,1704250185016,-304.32800257,0.00032876,2]
[309974537,1704250185040,-500.0,0.00032876,2]
[309974538,1704250185063,-535.68416224,0.00032876,2]
[309974539,1704250185087,-499.49126445,0.00032876,2]
[309974540,1704250185112,-500.0,0.00032876,2]
[309974541,1704250185135,-623.5,0.00032876,2]
[309974542,1704250185159,-504.74716599,0.00032876,2]
[309974543,1704250185183,-500.0,0.00032876,2]
[309974544,1704250185211,-534.58700102,0.00032876,2]
[309974545,1704250185236,-500.0,0.00032876,2]
[309974546,1704250185260,-502.45406265,0.00032876,2]
[309974547,1704250185286,-500.0,0.00032876,2]
[309974548,1704250185310,-510.44985278,0.00032876,2]
[309974549,1704250185334,-157.68452891,0.00032876,2]
[309974550,1704250185358,-529.54167892,0.00032876,2]
[309974551,1704250185381,-504.38299319,0.00032876,2]
[309974552,1704250185405,-514.48409109,0.00032876,2]
[309974553,1704250185428,-506.89884589,0.00032876,2]
[309974554,1704250185450,-519.49608937,0.00032876,2]
[309974555,1704250185472,-254.19142605,0.00032876,2]
[309974556,1704250185499,-500.0,0.00032876,2]
[309974557,1704250185522,-155.92842657,0.00032876,2]
[309974558,1704250185545,-509.76704521,0.00032876,2]
[309974559,1704250185568,-508.1142831,0.00032876,2]
[309974560,1704250185606,-503.21169417,0.00032876,2]
[309974561,1704250185631,-500.0,0.00032876,2]
[309974562,1704250185656,-500.0,0.00032876,2]
[309974563,1704250185680,-500.0,0.00032876,2]
[309974564,1704250185705,-500.0,0.00032876,2]
[309974565,1704250185730,-500.0,0.00032876,2]
[309974566,1704250185753,-500.0,0.00032876,2]
[309974567,1704250185776,-508.63604658,0.00032876,2]
[309974568,1704250185803,-530.42172494,0.00032876,2]
[309974569,1704250185827,-529.59202503,0.00032876,2]
[309974570,1704250185856,-572.33315582,0.00032876,2]
[309974571,1704250185881,-508.65298193,0.00032876,2]
[309974572,1704250185907,-536.67893481,0.00032876,2]
[309974573,1704250185932,-515.67927734,0.00032876,2]
[309974574,1704250185959,-520.15,0.00032876,2]
[309974575,1704250185981,-626.73528446,0.00032876,2]
[309974576,1704250186005,-345.09825401,0.00032876,2]
[309974577,1704250186030,-586.8752872,0.00032876,2]
[309974578,1704250186054,-552.68953711,0.00032876,2]
[309974579,1704250186078,-522.55972193,0.00032876,2]
[309974580,1704250186286,-535.95018537,0.00032876,2]
[309974581,1704250186312,-517.6860244,0.00032876,2]
[309974582,1704250186336,-500.0,0.00032876,2]
[309974583,1704250186361,-498.43394933,0.00032876,2]
[309974584,1704250186385,-516.75982607,0.00032876,2]
[309974585,1704250186409,-503.86369504,0.00032876,2]
[309974586,1704250186434,-540.63103134,0.00032876,2]
[309974587,1704250186458,-500.0,0.00032876,2]
[309974588,1704250186480,-178.0599901,0.00032876,2]
[309974589,1704250186503,-526.27695294,0.00032876,2]
[309974590,1704250186525,-508.88092077,0.00032876,2]
[309974591,1704250186551,-500.0,0.00032876,2]
[309974592,1704250186574,-421.04723447,0.00032876,2]
[309974593,1704250186598,-528.61830976,0.00032876,2]
[309974594,1704250186620,-506.94354211,0.00032876,2]
[309974595,1704250186642,-298.87282599,0.00032876,2]
[309974596,1704250186665,-506.0831555,0.00032876,2]
[309974597,1704250186689,-500.0,0.00032876,2]
[309974598,1704250186712,-267.04,0.00032876,2]
[309974599,1704250186740,-530.36563517,0.00032876,2]
[309974600,1704250186762,-522.08526487,0.00032876,2]
[309974601,1704250186785,-521.39854666,0.00032876,2]
[309974602,1704250186810,-500.0,0.00032876,2]
[309974603,1704250186833,-500.0,0.00032876,2]
[309974604,1704250186856,-166.34762096,0.00032876,2]
[309974605,1704250186879,-520.2584735,0.00032876,2]
[309974606,1704250186904,-160.04591022,0.00032876,2]
[309974607,1704250186928,-500.0,0.00032876,2]
[309974608,1704250186951,-166.1416834,0.00032876,2]
[309974609,1704250186972,-500.0,0.00032876,2]
[309974610,1704250186995,-492.70027922,0.00032876,2]
[309974611,1704250187018,-500.0,0.00032876,2]
[309974612,1704250187045,-500.0,0.00032876,2]
[309974613,1704250187068,-392.13158234,0.00032876,2]
[309974614,1704250187090,-512.49108755,0.00032876,2]
[309974615,1704250187114,-504.70096317,0.00032876,2]
[309974616,1704250187137,-512.60036536,0.00032876,2]
[309974617,1704250187161,-500.0,0.00032876,2]
[309974618,1704250187184,-324.63032219,0.00032876,2]
[309974619,1704250187209,-511.05230578,0.00032876,2]
[309974620,1704250187232,-500.0,0.00032876,2]
[309974621,1704250187255,-500.0,0.00032876,2]
[309974622,1704250187279,-618.28200186,0.00032876,2]
[309974623,1704250187303,-339.50175995,0.00032876,2]
[309974624,1704250187325,-512.26920975,0.00032876,2]
[309974625,1704250187350,-500.0,0.00032876,2]
[309974626,1704250187372,-500.0,0.00032876,2]
[309974627,1704250187395,-527.69928194,0.00032876,2]
[309974628,1704250187419,-517.39481314,0.00032876,2]
[309974629,1704250187441,-500.0,0.00032876,2]
[309974630,1704250187464,-539.18037801,0.00032876,2]
[309974631,1704250187487,-500.0,0.00032876,2]
[309974632,1704250187509,-500.0,0.00032876,2]
[309974633,1704250187533,-500.0,0.00032876,2]
[309974634,1704250187555,-186.92819291,0.00032876,2]
[309974635,1704250187578,-507.69088814,0.00032876,2]
[309974636,1704250187601,-506.0858902,0.00032876,2]
[309974637,1704250187624,-625.55616249,0.00032876,2]
[309974638,1704250187651,-500.0,0.00032876,2]
[309974639,1704250187674,-518.07821553,0.00032876,2]
[309974640,1704250187698,-500.0,0.00032876,2]
[309974641,1704250187721,-500.0,0.00032876,2]
[309974642,1704250187747,-504.38812465,0.00032876,2]
[309974643,1704250187771,-468.51240475,0.00032876,2]
[309974644,1704250187797,-508.00910758,0.00032876,2]
[309974645,1704250187820,-525.62353473,0.00032876,2]
[309974646,1704250187845,-546.84196202,0.00032876,2]
[309974647,1704250187868,-500.0,0.00032876,2]
[309974648,1704250187892,-500.0,0.00032876,2]
[309974649,1704250187917,-500.0,0.00032876,2]
[309974650,1704250187940,-500.0,0.00032876,2]
[309974651,1704250187964,-500.0,0.00032876,2]
[309974652,1704250187991,-532.25307218,0.00032876,2]
[309974653,1704250188014,-513.11016761,0.00032876,2]
[309974654,1704250188038,-500.0,0.00032876,2]
[309974655,1704250188061,-499.86420161,0.00032876,2]
[309974656,1704250188086,-500.0,0.00032876,2]
[309974657,1704250188110,-205.19010137,0.00032876,2]
[309974658,1704250188133,-533.6500165,0.00032876,2]
[309974659,1704250188157,-534.14779881,0.00032876,2]
[309974660,1704250188180,-508.71917825,0.00032876,2]
[309974661,1704250188204,-522.23190563,0.00032876,2]
[309974662,1704250188228,-530.24789386,0.00032876,2]
[309974663,1704250188253,-518.85540227,0.00032876,2]
[309974664,1704250188277,-513.30263648,0.00032876,2]
[309974665,1704250188301,-514.81482223,0.00032876,2]
[309974666,1704250188325,-417.8110964,0.00032876,2]
[309974667,1704250188349,-476.50703262,0.00032876,2]
[309974668,1704250188374,-502.6634793,0.00032876,2]
[309974669,1704250188398,-503.44481492,0.00032876,2]
[309974670,1704250188421,-255.83891607,0.00032876,2]
[309974671,1704250188443,-500.0,0.00032876,2]
[309974672,1704250188466,-518.30016812,0.00032876,2]
[309974673,1704250188488,-518.98761644,0.00032876,2]
[309974674,1704250188511,-229.35504672,0.00032876,2]
[309974675,1704250188533,-502.65275605,0.00032876,2]
[309974676,1704250188555,-527.25796309,0.00032876,2]
[309974677,1704250188578,-535.82961616,0.00032876,2]
[309974678,1704250188600,-515.89570937,0.00032876,2]
[309974679,1704250188623,-607.56344448,0.00032876,2]
[309974680,1704250188645,-529.17540757,0.00032876,2]
[309974681,1704250188669,-519.74835066,0.00032876,2]
[309974682,1704250188692,-519.15614865,0.00032876,2]
[309974683,1704250188714,-500.0,0.00032876,2]
[309974684,1704250188737,-507.65069656,0.00032876,2]
[309974685,1704250188760,-515.08576553,0.00032876,2]
[309974686,1704250188943,-634.84815329,0.00032876,2]
[309974687,1704250188967,-501.66802919,0.00032876,2]
[309974688,1704250188993,-505.19418152,0.00032876,2]
[309974689,1704250189016,-500.0,0.00032876,2]
[309974690,1704250189039,-513.92535575,0.00032876,2]
[309974691,1704250189062,-522.07104949,0.00032876,2]
[309974692,1704250189085,-444.13013741,0.00032876,2]
[309974693,1704250189108,-502.56803934,0.00032876,2]
[309974694,1704250189132,-523.01964934,0.00032876,2]
[309974695,1704250189157,-500.0,0.00032876,2]
[309974696,1704250189180,-500.0,0.00032876,2]
[309974697,1704250189206,-500.0,0.00032876,2]
[309974698,1704250189230,-505.34257112,0.00032876,2]
[309974699,1704250189255,-644.82653311,0.00032876,2]
[309974700,1704250189279,-500.0,0.00032876,2]
[309974701,1704250189301,-500.0,0.00032876,2]
[309974702,1704250189325,-500.0,0.00032876,2]
[309974703,1704250189349,-500.0,0.00032876,2]
[309974704,1704250189374,-500.0,0.00032876,2]
[309974705,1704250189396,-500.0,0.00032876,2]
[309974706,1704250189419,-500.0,0.00032876,2]
[309974707,1704250189443,-500.0,0.00032876,2]
[309974708,1704250189466,-500.0,0.00032876,2]
[309974709,1704250189489,-447.76777088,0.00032876,2]
[309974710,1704250189513,-536.60126261,0.00032876,2]
[309974711,1704250189540,-500.0,0.00032876,2]
[309974712,1704250189563,-500.0,0.00032876,2]
[309974713,1704250189587,-500.0,0.00032876,2]
[309974714,1704250189610,-504.25699641,0.00032876,2]
[309974715,1704250189633,-506.48584394,0.00032876,2]
[309974716,1704250189655,-533.94738376,0.00032876,2]
[309974717,1704250189678,-266.29907001,0.00032876,2]
[309974718,1704250189701,-506.00888582,0.00032876,2]
[309974719,1704250189723,-539.08143505,0.00032876,2]
[309974720,1704250189750,-500.0,0.00032876,2]
[309974721,1704250189774,-343.23701363,0.00032876,2]
[309974722,1704250189798,-1009.33,0.00032876,2]
[309974723,1704250189824,-1009.33,0.00032876,2]
[309974724,1704250189849,-1009.33,0.00032876,2]
[309974725,1704250189871,-500.0,0.00032876,2]
[309974726,1704250189895,-500.0,0.00032876,2]
[309974727,1704250189919,-500.0,0.00032876,2]
[309974728,1704250189941,-407.87254477,0.00032876,2]
[309974729,1704250189964,-524.86718611,0.00032876,2]
[309974730,1704250189987,-516.60277992,0.00032876,2]
[309974731,1704250190010,-524.65655046,0.00032876,2]
[309974732,1704250190034,-500.0,0.00032876,2]
[309974733,1704250190056,-507.79086714,0.00032876,2]
[309974734,1704250190079,-500.0,0.00032876,2]
[309974735,1704250190101,-500.0,0.00032876,2]
[309974736,1704250190125,-168.06806037,0.00032876,2]
[309974737,1704250190148,-528.62176211,0.00032876,2]
[309974738,1704250190172,-500.0,0.00032876,2]
[309974739,1704250190195,-619.64328817,0.00032876,2]
[309974740,1704250190219,-500.0,0.00032876,2]
[309974741,1704250190243,-500.0,0.00032876,2]
[309974742,1704250190268,-500.0,0.00032876,2]
[309974743,1704250190292,-500.0,0.00032876,2]
[309974744,1704250190317,-500.0,0.00032876,2]
[309974745,1704250190342,-500.0,0.00032876,2]
[309974746,1704250190364,-314.20359656,0.00032876,2]
[309974747,1704250190389,-160.92281686,0.00032876,2]
[309974748,1704250190413,-500.0,0.00032876,2]
[309974749,1704250190437,-614.9895718,0.00032876,2]
[309974750,1704250190461,-500.0,0.00032876,2]
[309974751,1704250190484,-500.0,0.00032876,2]
[309974752,1704250190507,-1000.0,0.00032876,2]
[309974753,1704250190529,-500.0,0.00032876,2]
[309974754,1704250190552,-1000.0,0.00032876,2]
[309974755,1704250190575,-1041.82907861,0.00032876,2]
[309974756,1704250190597,-500.0,0.00032876,2]
[309974757,1704250190620,-622.14552695,0.00032876,2]
[309974758,1704250190642,-513.773271,0.00032876,2]
[309974759,1704250190666,-500.0,0.00032876,2]
[309974760,1704250190691,-1515.56,0.00032876,2]
[309974761,1704250190715,-1515.56,0.00032876,2]
[309974762,1704250190741,-483.08388879,0.00032876,2]
[309974763,1704250190765,-1515.56,0.00032876,2]
[309974764,1704250190789,-508.39881689,0.00032876,2]
[309974765,1704250190814,-1515.56,0.00032876,2]
[309974766,1704250190838,-527.79705684,0.00032876,2]
[309974767,1704250190862,-500.0,0.00032876,2]
[309974768,1704250190885,-336.67454725,0.00032876,2]
[309974769,1704250190908,-538.27160632,0.00032876,2]
[309974770,1704250190930,-500.0,0.00032876,2]
[309974771,1704250190953,-500.0,0.00032876,2]
[309974772,1704250190977,-519.99662536,0.00032876,2]
[309974773,1704250191001,-318.38102428,0.00032876,2]
[309974774,1704250191024,-512.20108502,0.00032876,2]
[309974775,1704250191048,-500.0,0.00032876,2]
[309974776,1704250191073,-500.0,0.00032876,2]
[309974777,1704250191096,-500.0,0.00032876,2]
[309974778,1704250191125,-500.0,0.00032876,2]
[309974779,1704250191149,-500.0,0.00032876,2]
[309974780,1704250191174,-500.0,0.00032876,2]
[309974781,1704250191200,-500.0,0.00032876,2]
[309974782,1704250191224,-625.49580512,0.00032876,2]
[309974783,1704250191248,-500.0,0.00032876,2]
[309974784,1704250191273,-509.45975301,0.00032876,2]
[309974785,1704250191296,-519.82767013,0.00032876,2]
[309974786,1704250191321,-500.0,0.00032876,2]
[309974787,1704250191345,-322.84196105,0.00032876,2]
[309974788,1704250191368,-500.0,0.00032876,2]
[309974789,1704250191392,-505.38682207,0.00032876,2]
[309974790,1704250191416,-500.0,0.00032876,2]
[309974791,1704250191439,-500.0,0.00032876,2]
[309974792,1704250191462,-500.0,0.00032876,2]
[309974793,1704250191630,-500.0,0.00032876,2]
[309974794,1704250191654,-500.0,0.00032876,2]
[309974795,1704250191678,-500.0,0.00032876,2]
[309974796,1704250191700,-500.0,0.00032876,2]
[309974797,1704250191723,-525.94535876,0.00032876,2]
[309974798,1704250191746,-526.0600501,0.00032876,2]
[309974799,1704250191768,-506.70195836,0.00032876,2]
[309974800,1704250191791,-526.73384459,0.00032876,2]
[309974801,1704250191814,-522.71312866,0.00032876,2]
[309974802,1704250191837,-500.0,0.00032876,2]
[309974803,1704250191860,-261.43169874,0.00032876,2]
[309974804,1704250191883,-524.45744727,0.00032876,2]
[309974805,1704250191908,-500.0,0.00032876,2]
[309974806,1704250191933,-500.0,0.00032876,2]
[309974807,1704250191957,-500.0,0.00032876,2]
[309974808,1704250191981,-500.0,0.00032876,2]
[309974809,1704250192005,-500.0,0.00032876,2]
[309974810,1704250192029,-500.0,0.00032876,2]
[309974811,1704250192054,-373.79706033,0.00032876,2]
[309974812,1704250192078,-918.82,0.00032876,2]
[309974813,1704250192102,-918.82,0.00032876,2]
[309974814,1704250192126,-918.82,0.00032876,2]
[309974815,1704250192151,-500.0,0.00032876,2]
[309974816,1704250192178,-500.0,0.00032876,2]
[309974817,1704250192201,-500.0,0.00032876,2]
[309974818,1704250192225,-500.0,0.00032876,2]
[309974819,1704250192248,-500.0,0.00032876,2]
[309974820,1704250192271,-500.0,0.00032876,2]
[309974821,1704250192295,-333.64103207,0.00032876,2]
[309974822,1704250192319,-176.33674856,0.00032876,2]
[309974823,1704250192345,-576.91783984,0.00032876,2]
[309974824,1704250192370,-544.58936989,0.00032876,2]
[309974825,1704250192392,-506.46461079,0.00032876,2]
[309974826,1704250192416,-500.0,0.00032876,2]
[309974827,1704250192439,-500.0,0.00032876,2]
[309974828,1704250192462,-500.0,0.00032876,2]
[309974829,1704250192486,-288.9722232,0.00032876,2]
[309974830,1704250192508,-500.0,0.00032876,2]
[309974831,1704250192531,-567.66854203,0.00032876,2]
[309974832,1704250192554,-151.84531671,0.00032876,2]
[309974833,1704250192577,-517.36248903,0.00032876,2]
[309974834,1704250192599,-513.12048371,0.00032876,2]
[309974835,1704250192623,-226.89649145,0.00032876,2]
[309974836,1704250192646,-560.67684608,0.00032876,2]
[309974837,1704250192671,-500.0,0.00032876,2]
[309974838,1704250192693,-837.8,0.00032876,2]
[309974839,1704250192716,-172.56435629,0.00032876,2]
[309974840,1704250192737,-837.8,0.00032876,2]
[309974841,1704250192760,-517.33937819,0.00032876,2]
[309974842,1704250192784,-837.8,0.00032876,2]
[309974843,1704250192806,-837.8,0.00032876,2]
[309974844,1704250192830,-500.0,0.00032876,2]
[309974845,1704250192854,-500.0,0.00032876,2]
[309974846,1704250192877,-500.0,0.00032876,2]
[309974847,1704250192900,-500.0,0.00032876,2]
[309974848,1704250192925,-500.0,0.00032876,2]
[309974849,1704250192948,-534.71015406,0.00032876,2]
[309974850,1704250192971,-546.76213852,0.00032876,2]
[309974851,1704250192995,-148.78940696,0.00032876,2]
[309974867,1704250232349,-2432.96628502,0.00032049,4]
[309974868,1704250232402,-993.79654298,0.00032049,4]
[309974869,1704250232509,-950.0,0.00032049,4]
[309974870,1704250232521,-3285.77118433,0.00032049,4]
[309974871,1704250232534,-4364.90468913,0.00032049,4]
[309974872,1704250232545,-3421.8388681,0.00032049,4]
[309974873,1704250232565,-797.93461307,0.00032049,4]
[309974874,1704250232680,-1050.69934377,0.00032049,4]
[309974898,1704250238410,-325.58595667,0.00032049,2]
[309974941,1704250240998,-377.89427022,0.00032049,2]
[309974944,1704250243553,-28.62977311,0.00032049,2]
[309974945,1704250243563,-38830.42953156,0.00032049,4]
[309974946,1704250243573,-198.22598759,0.0003205,4]
[309974947,1704250243583,-200.2573603,0.0003205,4]
[309974948,1704250243594,-162.65587049,0.00032051,4]
[309974949,1704250243606,-304391.0981,0.00032052,2]
[309974950,1704250243615,-4564.77561293,0.000325,2]
[309974951,1704250243626,-168.2158605,0.00032875,14]
[309974952,1704250243636,-3285.13803586,0.00032875,2]
[309974953,1704250243646,-351.21059304,0.00032876,2]
[309974954,1704250243658,-590.69210852,0.00032876,2]
[309974955,1704250243667,-500.0,0.00032876,2]
[309974956,1704250243677,-500.0,0.00032876,2]
[309974957,1704250243688,-176.50447642,0.00032876,2]
[309974958,1704250243699,-500.0,0.00032876,2]
[309974959,1704250243710,-531.30283457,0.00032876,2]
[309974960,1704250243719,-500.0,0.00032876,2]
[309974961,1704250243729,-500.0,0.00032876,2]
[309974962,1704250243738,-531.54677572,0.00032876,2]
[309974963,1704250243748,-161.488681,0.00032876,2]
[309974964,1704250243759,-505.99195134,0.00032876,2]
[309974965,1704250243769,-507.98010065,0.00032876,2]
[309974967,1704250243778,-507.84771159,0.00032876,2]
[309974969,1704250243788,-585.26699568,0.00032876,2]
[309974971,1704250243799,-432.53472932,0.00032876,2]
[309974972,1704250243827,-72.71791205,0.00032876,2]
[309974973,1704250243837,-500.0,0.00032876,2]
[309974974,1704250243847,-500.0,0.00032876,2]
[309974975,1704250243857,-500.0,0.00032876,2]
[309974976,1704250243867,-500.0,0.00032876,2]
[309974977,1704250243876,-536.4731876,0.00032876,2]
[309974978,1704250243885,-500.0,0.00032876,2]
[309974979,1704250243895,-500.0,0.00032876,2]
[309974980,1704250243905,-500.0,0.00032876,2]
[309974981,1704250243918,-500.0,0.00032876,2]
[309974982,1704250243928,-500.0,0.00032876,2]
[309974983,1704250243939,-628.68671658,0.00032876,2]
[309974984,1704250243949,-500.0,0.00032876,2]
[309974985,1704250243960,-500.0,0.00032876,2]
[309974986,1704250243970,-500.0,0.00032876,2]
[309974987,1704250243979,-858.23407385,0.00032876,2]
[309974988,1704250243993,-862.64592615,0.00032876,2]
[309974989,1704250244003,-500.0,0.00032876,2]
[309974990,1704250244013,-1720.88,0.00032876,2]
[309974991,1704250244023,-1720.88,0.00032876,2]
[309974992,1704250244033,-514.64215724,0.00032876,2]
[309974993,1704250244043,-500.0,0.00032876,2]
[309974994,1704250244054,-394.86139831,0.00032876,2]
[309974995,1704250244064,-500.0,0.00032876,2]
[309974996,1704250244076,-531.5983117,0.00032876,2]
[309974997,1704250244086,-500.0,0.00032876,2]
[309974998,1704250244097,-500.0,0.00032876,2]
[309974999,1704250244107,-505.82460511,0.00032876,2]
[309975000,1704250244118,-500.0,0.00032876,2]
[309975001,1704250244127,-412.90780542,0.00032876,2]
[309975002,1704250244137,-260.54989834,0.00032876,2]
[309975028,1704250247091,-239.45010166,0.00032876,2]
[309975029,1704250247102,-508.11096024,0.00032876,2]
[309975030,1704250247112,-500.0,0.00032876,2]
[309975031,1704250247122,-516.6354671,0.00032876,2]
[309975032,1704250247132,-500.0,0.00032876,2]
[309975033,1704250247142,-500.0,0.00032876,2]
[309975034,1704250247151,-664.8,0.00032876,2]
[309975035,1704250247161,-664.8,0.00032876,2]
[309975036,1704250247171,-168.00466891,0.00032876,2]
[309975037,1704250247180,-664.8,0.00032876,2]
[309975038,1704250247189,-509.53473001,0.00032876,2]
[309975039,1704250247198,-664.8,0.00032876,2]
[309975040,1704250247209,-507.83681101,0.00032876,2]
[309975041,1704250247219,-493.194189,0.00032876,2]
[309975042,1704250247232,-267.94773161,0.00032876,2]
[309975043,1704250247242,-512.04800401,0.00032876,2]
[309975044,1704250247251,-500.0,0.00032876,2]
[309975045,1704250247261,-500.0,0.00032876,2]
[309975046,1704250247270,-504.21866417,0.00032876,2]
[309975047,1704250247280,-500.0,0.00032876,2]
[309975048,1704250247289,-523.77763219,0.00032876,2]
[309975049,1704250247300,-500.0,0.00032876,2]
[309975050,1704250247309,-588.0,0.00032876,2]
[309975051,1704250247319,-500.0,0.00032876,2]
[309975052,1704250247329,-588.0,0.00032876,2]
[309975053,1704250247339,-500.0,0.00032876,2]
[309975054,1704250247348,-500.0,0.00032876,2]
[309975055,1704250247362,-588.0,0.00032876,2]
[309975056,1704250247371,-152.14466174,0.00032876,2]
[309975057,1704250247381,-500.0,0.00032876,2]
[309975058,1704250247391,-304.9615336,0.00032876,2]
[309975059,1704250247401,-500.0,0.00032876,2]
[309975060,1704250247410,-288.71106577,0.00032876,2]
[309975061,1704250247420,-500.0,0.00032876,2]
[309975062,1704250247429,-500.0,0.00032876,2]
[309975063,1704250247439,-194.48849924,0.00032876,2]
[309975064,1704250247449,-529.71,0.00032876,2]
[309975065,1704250247459,-175.6017963,0.00032876,2]
[309975066,1704250247468,-623.10558278,0.00032876,2]
[309975067,1704250247478,-500.0,0.00032876,2]
[309975068,1704250247487,-500.0,0.00032876,2]
[309975069,1704250247497,-510.00269672,0.00032876,2]
[309975070,1704250247509,-500.0,0.00032876,2]
[309975071,1704250247521,-500.0,0.00032876,2]
[309975072,1704250247531,-500.0,0.00032876,2]
[309975073,1704250247541,-500.0,0.00032876,2]
[309975074,1704250247551,-558.35,0.00032876,2]
[309975075,1704250247561,-505.96017218,0.00032876,2]
[309975076,1704250247571,-500.0,0.00032876,2]
[309975077,1704250247581,-500.0,0.00032876,2]
[309975078,1704250247590,-500.0,0.00032876,2]
[309975079,1704250247600,-500.0,0.00032876,2]
[309975080,1704250247610,-500.0,0.00032876,2]
[309975081,1704250247621,-358.29,0.00032876,2]
[309975082,1704250247631,-500.0,0.00032876,2]
[309975083,1704250247641,-500.0,0.00032876,2]
[309975084,1704250247652,-531.08773807,0.00032876,2]
[309975085,1704250247662,-500.0,0.00032876,2]
[309975086,1704250247672,-500.0,0.00032876,2]
[309975087,1704250247683,-500.0,0.00032876,2]
[309975088,1704250247693,-500.0,0.00032876,2]
[309975089,1704250247702,-500.0,0.00032876,2]
[309975090,1704250247712,-500.0,0.00032876,2]
[309975091,1704250247721,-285.53822041,0.00032876,2]
[309975092,1704250247730,-500.0,0.00032876,2]
[309975093,1704250247739,-541.60312303,0.00032876,2]
[309975094,1704250247749,-500.0,0.00032876,2]
[309975095,1704250247759,-648.24372816,0.00032876,2]
[309975096,1704250247769,-500.0,0.00032876,2]
[309975097,1704250247779,-500.0,0.00032876,2]
[309975098,1704250247790,-500.0,0.00032876,2]
[309975099,1704250247802,-500.0,0.00032876,2]
[309975100,1704250247813,-500.0,0.00032876,2]
[309975101,1704250247823,-500.0,0.00032876,2]
[309975102,1704250247834,-500.0,0.00032876,2]
[309975103,1704250247845,-541.87246138,0.00032876,2]
[309975104,1704250247854,-647.63727831,0.00032876,2]
[309975105,1704250247866,-504.46820321,0.00032876,2]
[309975106,1704250247875,-397.5392362,0.00032876,2]
[309975107,1704250247885,-500.0,0.00032876,2]
[309975108,1704250247896,-524.89190431,0.00032876,2]
[309975109,1704250247907,-605.69,0.00032876,2]
[309975110,1704250247918,-605.69,0.00032876,2]
[309975111,1704250247928,-500.0,0.00032876,2]
[309975112,1704250247938,-605.69,0.00032876,2]
[309975113,1704250247948,-500.0,0.00032876,2]
[309975114,1704250247959,-504.53222225,0.00032876,2]
[309975115,1704250247969,-605.69,0.00032876,2]
[309975116,1704250247978,-500.0,0.00032876,2]
[309975117,1704250247988,-578.09071013,0.00032876,2]
[309975118,1704250247998,-500.0,0.00032876,2]
[309975119,1704250248008,-392.87943046,0.00032876,2]
[309975120,1704250248018,-500.0,0.00032876,2]
[309975121,1704250248030,-500.0,0.00032876,2]
[309975122,1704250248040,-500.0,0.00032876,2]